bitfinex-derivatives/quotes_BTCF0:USTF0_20251115
["timestamp","ask_amount","ask_price","bid_price","bid_amount"]
[1763207697129,0.15460294,95736.0,95735.0,0.04523296]
[1763207697537,0.15460294,95736.0,95735.0,0.05880296]
[1763207697840,0.19140075,95736.0,95735.0,0.05880296]
[1763207698233,0.15400294,95736.0,95735.0,0.05880296]
[1763207700638,0.13147294,95736.0,95735.0,0.05880296]
[1763207700837,0.10986294,95736.0,95735.0,0.05880296]
[1763207701241,0.08278997,95741.0,95740.0,0.05754]
[1763207701435,0.08278997,95741.0,95740.0,0.42053803]
[1763207701635,0.15659767,95741.0,95740.0,0.42053803]
[1763207708050,0.14867016,95741.0,95740.0,0.42053803]
[1763207708346,0.11121767,95741.0,95740.0,0.42053803]
[1763207708739,0.15666116,95745.0,95740.0,0.37664803]
[1763207708940,0.04538,95745.0,95744.0,0.04389]
[1763207709342,0.15666116,95745.0,95744.0,0.04389]
[1763207712447,0.0453,95741.0,95740.0,0.38631803]
[1763207712651,0.0453,95741.0,95740.0,0.36299803]
[1763207712849,0.15827972,95741.0,95740.0,0.36299803]
[1763207713852,0.15827972,95741.0,95740.0,0.38631803]
[1763207714552,0.15827972,95741.0,95740.0,0.36299803]
[1763207715955,0.15827972,95741.0,95740.0,0.38631803]
[1763207716142,0.15827972,95741.0,95740.0,0.40790803]
[1763207718856,0.15827972,95741.0,95740.0,0.38631803]
[1763207719958,0.15827972,95741.0,95740.0,0.40790803]
[1763207721547,0.15827972,95741.0,95740.0,0.36299803]
[1763207721959,0.15827972,95741.0,95740.0,0.40790803]
[1763207724960,0.21437531,95741.0,95740.0,0.40790803]
[1763207725151,0.15827972,95741.0,95740.0,0.40790803]
[1763207734264,0.15827972,95741.0,95740.0,0.42076803]
[1763207737562,0.15827972,95741.0,95740.0,0.36299803]
[1763207737766,0.05599,95736.0,95735.0,0.00015296]
[1763207738066,0.16682259,95736.0,95735.0,0.02301296]
[1763207738866,0.16682259,95736.0,95735.0,0.04617296]
[1763207739767,0.16682259,95736.0,95735.0,0.04717296]
[1763207739972,0.15417259,95736.0,95735.0,0.04717296]
[1763207741963,0.16682259,95736.0,95735.0,0.04717296]
[1763207742170,0.15417259,95736.0,95735.0,0.04717296]
[1763207751576,0.16682259,95736.0,95735.0,0.02501296]
[1763207752073,0.16682259,95736.0,95735.0,0.04717296]
[1763207755572,0.16682259,95736.0,95726.0,0.00026116]
[1763207755573,0.04334,95727.0,95726.0,0.00026116]
[1763207755767,0.04334,95712.0,95711.0,0.40582]
[1763207755963,0.08076396,95712.0,95711.0,0.40582]
[1763207756170,0.13071936,95712.0,95711.0,0.40582]
[1763207756875,0.14197146,95712.0,95711.0,0.40582]
[1763207757468,0.16356146,95712.0,95711.0,0.40782]
[1763207759080,0.16356146,95712.0,95711.0,0.40982]
[1763207761471,0.12022146,95712.0,95711.0,0.40982]
[1763207761981,0.14190146,95712.0,95711.0,0.40982]
[1763207762570,0.12022146,95712.0,95711.0,0.40982]
[1763207762977,0.16484146,95712.0,95711.0,0.40982]
[1763207764585,0.12022146,95712.0,95711.0,0.40982]
[1763207765277,0.16484146,95712.0,95711.0,0.40982]
[1763207765577,0.14190146,95712.0,95711.0,0.40982]
[1763207765979,0.16484146,95712.0,95711.0,0.40982]
[1763207767773,0.12022146,95712.0,95711.0,0.40982]
[1763207770392,0.14190146,95712.0,95711.0,0.40982]
[1763207771081,0.16484146,95712.0,95711.0,0.40982]
[1763207774190,0.12022146,95712.0,95711.0,0.40982]
[1763207775783,0.14179146,95712.0,95711.0,0.40982]
[1763207775977,0.12022146,95712.0,95711.0,0.40982]
[1763207777683,0.04780734,95712.0,95711.0,0.40982]
[1763207777988,0.00155524,95712.0,95711.0,0.40982]
[1763207779480,0.10841201,95721.0,95711.0,0.40982]
[1763207779481,0.00015668,95721.0,95711.0,0.3648]
[1763207779688,0.00015668,95721.0,95720.0,0.3608]
[1763207779890,0.00015668,95721.0,95720.0,0.36299803]
[1763207780093,0.12001018,95721.0,95720.0,0.36299803]
[1763207781094,0.12001018,95721.0,95720.0,0.36399803]
[1763207781890,0.12001018,95721.0,95720.0,0.36499803]
[1763207782285,0.14158018,95721.0,95720.0,0.36499803]
[1763207783087,0.12001018,95721.0,95720.0,0.36499803]
[1763207785192,0.05001018,95721.0,95720.0,0.36499803]
[1763207785491,0.01501018,95721.0,95720.0,0.36499803]
[1763207786592,1.8e-07,95721.0,95720.0,0.36499803]
[1763207787301,1.8e-07,95721.0,95720.0,0.40254528]
[1763207788999,1.8e-07,95721.0,95720.0,0.36499803]
[1763207793505,1.8e-07,95721.0,95720.0,0.393131]
[1763207794397,0.02120018,95721.0,95720.0,0.393131]
[1763207794897,1.8e-07,95721.0,95720.0,0.36499803]
[1763207799291,0.04239018,95721.0,95720.0,0.36499803]
[1763207802102,1.8e-07,95721.0,95720.0,0.36499803]
[1763207805293,1.8e-07,95721.0,95720.0,0.40254528]
[1763207805904,1.8e-07,95721.0,95720.0,0.36499803]
[1763207806103,0.01288,95728.0,95720.0,0.36499803]
[1763207806307,0.01288,95728.0,95727.0,0.3608]
[1763207806698,0.12713024,95728.0,95727.0,0.3608]
[1763207808705,0.12713024,95728.0,95727.0,0.3618]
[1763207809208,0.00015668,95730.0,95727.0,0.3628]
[1763207809408,0.00015668,95730.0,95729.0,0.03759293]
[1763207811408,0.00015668,95730.0,95727.0,0.4673415]
[1763207811607,0.00015668,95730.0,95729.0,0.001]
[1763207811910,0.00015668,95730.0,95729.0,0.05734222]
[1763207812209,0.00015668,95730.0,95729.0,0.05834222]
[1763207812912,0.00015668,95730.0,95729.0,0.002]
[1763207813504,0.01288,95750.0,95748.0,0.1045181]
[1763207813815,0.01288,95756.0,95749.0,0.7216]
[1763207814006,0.03408,95756.0,95753.0,0.03759682]
[1763207814205,0.13201341,95755.0,95753.0,0.03759682]
[1763207814406,0.15320341,95755.0,95752.0,0.03759682]
[1763207815008,0.04239,95753.0,95752.0,0.03759682]
[1763207815199,0.04239,95753.0,95750.0,0.03979485]
[1763207815406,0.04239,95751.0,95750.0,0.03979485]
[1763207815715,0.16344748,95751.0,95750.0,0.03979485]
[1763207816414,0.16344748,95751.0,95750.0,0.00319803]
[1763207816616,0.16344748,95751.0,95750.0,0.04079485]
[1763207816817,0.16344748,95751.0,95750.0,0.00319803]
[1763207817914,0.16344748,95751.0,95750.0,0.00419803]
[1763207818911,0.16344748,95751.0,95750.0,0.0323411]
[1763207819211,0.16344748,95751.0,95750.0,0.3931411]
[1763207819415,0.16344748,95751.0,95750.0,0.36499803]
[1763207819617,0.16344748,95751.0,95750.0,0.3931411]
[1763207820315,0.16344748,95751.0,95750.0,0.36499803]
[1763207820718,0.16344748,95751.0,95750.0,0.36399803]
[1763207820907,0.16344748,95751.0,95750.0,0.36499803]
[1763207825014,0.16344748,95751.0,95750.0,0.36399803]
[1763207825214,0.16344748,95751.0,95750.0,0.36499803]
[1763207827123,0.16344748,95751.0,95750.0,0.36399803]
[1763207827507,0.16344748,95751.0,95750.0,0.36499803]
[1763207827912,0.16344748,95751.0,95750.0,0.36399803]
[1763207828312,0.16344748,95751.0,95750.0,0.36499803]
[1763207840428,0.16344748,95751.0,95750.0,0.40259485]
[1763207841226,0.16344748,95751.0,95750.0,0.36499803]
[1763207843232,0.12105748,95751.0,95750.0,0.36499803]
[1763207843434,0.01273,95752.0,95750.0,0.36499803]
[1763207843629,0.01273,95752.0,95751.0,0.3608]
[1763207845228,0.01273,95752.0,95751.0,0.3618]
[1763207845531,0.01273,95775.0,95760.0,0.1045057]
[1763207845841,0.01273,95775.0,95762.0,0.3608]
[1763207846324,0.01273,95775.0,95762.0,0.4655]
[1763207847425,0.01273,95775.0,95762.0,0.4665]
[1763207847622,0.01273,95775.0,95762.0,0.4675]
[1763207847827,0.01273,95775.0,95762.0,0.4665]
[1763207848035,0.01273,95775.0,95762.0,0.4675]
[1763207848236,0.01273,95775.0,95762.0,0.52382568]
[1763207848635,0.01334105,95766.0,95762.0,0.41912568]
[1763207849035,0.01334105,95766.0,95762.0,0.3628]
[1763207849630,0.01334105,95766.0,95762.0,0.3618]
[1763207849830,0.01334105,95766.0,95762.0,0.3628]
[1763207854345,0.00026105,95766.0,95762.0,0.3628]
[1763207856546,0.00026105,95766.0,95762.0,0.4663039]
[1763207856745,0.00026105,95766.0,95762.0,0.3618]
[1763207856945,0.00026105,95766.0,95762.0,0.3628]
[1763207857847,0.00026105,95766.0,95762.0,0.3638]
[1763207859056,0.00026105,95766.0,95762.0,0.42012568]
[1763207859353,0.00026105,95766.0,95762.0,0.42112568]
[1763207861554,0.00026105,95766.0,95762.0,0.3648]
[1763207864155,0.01308,95765.0,95762.0,0.3648]
[1763207868655,0.04534668,95763.0,95762.0,0.3648]
[1763207869158,0.04534668,95763.0,95762.0,0.4693039]
[1763207869958,0.04534668,95763.0,95762.0,0.3648]
[1763207871458,0.04534668,95763.0,95762.0,0.3628]
[1763207871657,0.04534668,95763.0,95762.0,0.3648]
[1763207872056,0.02294668,95763.0,95762.0,0.3648]
[1763207872657,0.00015668,95763.0,95762.0,0.3648]
[1763207873264,0.04534668,95763.0,95762.0,0.3648]
[1763207875761,0.02294668,95763.0,95762.0,0.3648]
[1763207877462,0.00015668,95763.0,95762.0,0.3648]
[1763207878368,0.00015668,95763.0,95762.0,0.3608]
[1763207878557,0.00015668,95763.0,95762.0,0.3648]
[1763207881254,0.04268668,95763.0,95762.0,0.3648]
[1763207881461,0.04268668,95763.0,95760.0,0.0518718]
[1763207881462,0.15940143,95763.0,95760.0,0.03762046]
[1763207881663,0.15940143,95763.0,95743.0,0.3608]
[1763207881664,0.03742396,95761.0,95743.0,0.41722376]
[1763207881858,0.03742396,95759.0,95751.0,0.34488361]
[1763207882063,0.5044,95760.0,95751.0,0.34488361]
[1763207882064,0.03742396,95754.0,95751.0,0.34488361]
[1763207882263,0.07210035,95761.0,95754.0,0.05572]
[1763207882264,0.15406148,95758.0,95754.0,0.05572]
[1763207882455,0.03742396,95760.0,95757.0,0.04245]
[1763207882656,0.55406148,95760.0,95759.0,0.3608]
[1763207882866,0.43742396,95760.0,95759.0,0.3608]
[1763207883066,0.14867978,95760.0,95759.0,0.3608]
[1763207883261,0.11125582,95760.0,95759.0,0.3608]
[1763207883667,0.0373793,95761.0,95759.0,0.3608]
[1763207883970,0.11527085,95760.0,95759.0,0.3608]
[1763207884767,0.11527085,95762.0,95759.0,0.3618]
[1763207884968,0.03753598,95763.0,95759.0,0.3618]
[1763207885267,0.1113641,95762.0,95759.0,0.3628]
[1763207885862,0.1113641,95762.0,95759.0,0.3618]
[1763207886068,0.1113641,95762.0,95759.0,0.3628]
[1763207890065,0.1113641,95762.0,95759.0,0.38417]
[1763207890267,0.1113641,95762.0,95761.0,0.04245]
[1763207891371,0.1113641,95762.0,95761.0,0.04345]
[1763207891677,0.1113641,95762.0,95761.0,0.04445]
[1763207912488,0.00015668,95763.0,95762.0,0.04465]
[1763207913388,0.00026105,95766.0,95765.0,0.05817]
[1763207913588,0.0373793,95784.0,95783.0,0.04465]
[1763207913992,0.15340643,95784.0,95783.0,0.04465]
[1763207914395,0.11602713,95784.0,95783.0,0.04465]
[1763207914688,0.0373793,95785.0,95783.0,0.04465]
[1763207915091,0.11599574,95784.0,95783.0,0.04465]
[1763207916495,0.11599574,95784.0,95783.0,0.02257]
[1763207916700,0.10899823,95785.0,95783.0,0.02257]
[1763207917097,0.0373793,95786.0,95782.0,0.3608]
[1763207917400,0.11720874,95785.0,95782.0,0.3608]
[1763207918297,0.11720874,95785.0,95782.0,0.38337]
[1763207918986,0.11720874,95785.0,95782.0,0.40545]
[1763207922604,0.15458804,95785.0,95782.0,0.40545]
[1763207922903,0.0373793,95785.0,95782.0,0.40545]
[1763207923103,0.11156251,95787.0,95785.0,0.05817]
[1763207923398,0.06870718,95791.0,95785.0,0.05817]
[1763207923604,0.11876948,95787.0,95785.0,0.05817]
[1763207929208,0.05614015,95786.0,95785.0,0.05817]
[1763207929606,0.16604488,95786.0,95785.0,0.05817]
[1763207929906,0.16604488,95786.0,95780.0,0.01571803]
[1763207929907,0.10990473,95786.0,95780.0,0.00219803]
[1763207930096,0.3608,95781.0,95774.0,0.00015668]
[1763207930301,0.17935664,95780.0,95761.0,0.40545]
[1763207930497,0.03743182,95762.0,95761.0,0.40545]
[1763207930902,0.15112585,95762.0,95761.0,0.40545]
[1763207932209,0.11369403,95762.0,95761.0,0.40545]
[1763207932410,0.15112834,95762.0,95761.0,0.40645]
[1763207932601,0.03743431,95762.0,95761.0,0.40645]
[1763207932907,0.15515281,95762.0,95761.0,0.40645]
[1763207933111,0.15515281,95762.0,95761.0,0.40745]
[1763207933695,0.1177185,95762.0,95761.0,0.04665]
[1763207934207,0.10986884,95765.0,95761.0,0.04665]
[1763207934405,0.10986884,95766.0,95765.0,0.05817]
[1763207934709,0.16601657,95767.0,95765.0,0.05817]
[1763207934909,0.10986884,95766.0,95765.0,0.05817]
[1763207935610,0.16576596,95769.0,95768.0,0.04465]
[1763207936006,0.05614773,95769.0,95768.0,0.04465]
[1763207936206,0.16846712,95769.0,95768.0,0.04465]
[1763207936409,0.11231939,95769.0,95768.0,0.04465]
[1763207936710,0.11231939,95770.0,95765.0,0.01352]
[1763207936901,0.11231939,95770.0,95769.0,0.04465]
[1763207937101,0.05630441,95771.0,95770.0,0.06036803]
[1763207937503,0.16916192,95771.0,95770.0,0.06036803]
[1763207938008,0.11301419,95771.0,95770.0,0.06036803]
[1763207952020,0.11301419,95771.0,95770.0,0.06136803]
[1763207952724,0.11301419,95771.0,95770.0,0.06036803]
[1763207952924,0.11301419,95771.0,95770.0,0.06136803]
[1763207954121,0.1504471,95771.0,95770.0,0.06136803]
[1763207955314,0.11301419,95771.0,95770.0,0.06136803]
[1763207955714,0.11301419,95771.0,95770.0,0.06036803]
[1763207960225,0.16916192,95771.0,95770.0,0.06036803]
[1763207961931,0.16916192,95771.0,95770.0,0.03828803]
[1763207962127,0.16916192,95771.0,95770.0,0.05959803]
[1763207965028,0.11301419,95771.0,95770.0,0.05959803]
[1763207966428,0.11301419,95771.0,95770.0,0.01571803]
[1763207971334,0.11301419,95771.0,95760.0,0.03557]
[1763207971534,0.07208151,95770.0,95760.0,0.05926803]
[1763207972030,0.11382839,95769.0,95760.0,0.05926803]
[1763207972425,0.11382839,95769.0,95768.0,0.01367]
[1763207972733,0.18878503,95769.0,95768.0,0.03572]
[1763207973034,0.07495664,95769.0,95768.0,0.03572]
[1763207973229,0.18936098,95770.0,95768.0,0.03572]
[1763207973534,0.11835464,95769.0,95768.0,0.01367]
[1763207974834,0.19331128,95769.0,95768.0,0.01367]
[1763207975235,0.07495664,95769.0,95768.0,0.03572]
[1763207975434,0.19228407,95769.0,95768.0,0.03572]
[1763207976436,0.11732743,95769.0,95768.0,0.03572]
[1763207976828,0.11171756,95770.0,95768.0,0.03572]
[1763207977036,0.07511332,95771.0,95768.0,0.03572]
[1763207977535,0.11159691,95770.0,95768.0,0.03572]
[1763207979729,0.11159691,95770.0,95768.0,0.01367]
[1763207979929,0.11159691,95770.0,95760.0,0.00219803]
[1763207980131,0.05625696,95763.0,95760.0,0.05941803]
[1763207980530,0.11256207,95762.0,95760.0,0.05941803]
[1763207980931,0.11256207,95762.0,95760.0,0.06041803]
[1763207981138,0.11256207,95762.0,95760.0,0.06141803]
[1763207981528,0.11201276,95764.0,95760.0,0.06141803]
[1763207981737,0.05625696,95765.0,95760.0,0.06141803]
[1763207982238,0.05625696,95765.0,95764.0,0.01367]
[1763207982537,0.16946728,95765.0,95764.0,0.03572]
[1763207982838,0.16946728,95765.0,95764.0,0.05722]
[1763207983636,0.16946728,95765.0,95764.0,0.05822]
[1763207985639,0.11321032,95765.0,95764.0,0.05822]
[1763207986033,0.05625696,95766.0,95764.0,0.05822]
[1763207986228,0.11459386,95765.0,95764.0,0.05822]
[1763207987439,0.05625696,95767.0,95764.0,0.05822]
[1763207987440,0.05625696,95767.0,95766.0,0.04355]
[1763207987840,0.17721261,95767.0,95766.0,0.04355]
[1763207990643,0.12095565,95767.0,95766.0,0.04355]
[1763207991147,0.03749024,95769.0,95768.0,0.05722]
[1763207991533,0.14826101,95769.0,95768.0,0.05722]
[1763207992442,0.11077077,95769.0,95768.0,0.05722]
[1763207992941,0.03764692,95771.0,95770.0,0.04574803]
[1763207993140,0.00015668,95771.0,95770.0,0.04574803]
[1763207993335,0.11812644,95771.0,95770.0,0.04574803]
[1763207996646,0.11812644,95771.0,95770.0,0.04674803]
[1763207997341,0.11812644,95771.0,95770.0,0.04574803]
[1763207997542,0.11812644,95771.0,95770.0,0.04674803]
[1763207998840,0.11812644,95771.0,95770.0,0.04574803]
[1763207999036,0.11812644,95771.0,95770.0,0.04674803]
[1763208001231,0.40146535,95770.0,95735.0,0.07512297]
[1763208001547,0.14416302,95745.0,95730.0,0.00073266]
[1763208001745,0.7216,95731.0,95730.0,0.04407266]
[1763208002132,0.47704722,95731.0,95730.0,0.04407266]
[1763208004548,0.87528146,95731.0,95730.0,0.00073266]
[1763208004748,0.83784722,95731.0,95730.0,0.00073266]
[1763208007638,0.87513623,95731.0,95730.0,0.00073266]
[1763208007843,0.00219803,95730.0,95721.0,0.00015668]
[1763208008049,0.0559283,95729.0,95721.0,0.00015668]
[1763208008237,0.17632466,95729.0,95721.0,0.00015668]
[1763208009147,0.12039636,95729.0,95721.0,0.00015668]
[1763208009345,0.03723354,95727.0,95721.0,0.00015668]
[1763208009847,0.15739264,95727.0,95721.0,0.00015668]
[1763208010346,0.15737407,95727.0,95721.0,0.00015668]
[1763208010546,0.1201591,95727.0,95721.0,0.00015668]
[1763208010747,0.3608,95722.0,95721.0,0.00015668]
[1763208011148,0.47420872,95722.0,95721.0,0.00015668]
[1763208011948,0.47420872,95722.0,95721.0,0.04374668]
[1763208021052,0.47420872,95722.0,95721.0,0.00015668]
[1763208021559,0.00219803,95720.0,95718.0,0.01388]
[1763208021961,0.11700803,95719.0,95718.0,0.03516]
[1763208022756,0.11700803,95719.0,95718.0,0.05747]
[1763208024960,0.11700803,95719.0,95718.0,0.03516]
[1763208025159,0.154223,95719.0,95711.0,0.01388]
[1763208025352,0.3608,95712.0,95711.0,0.05747]
[1763208025659,0.47770801,95712.0,95711.0,0.05747]
[1763208028151,0.49055894,95712.0,95711.0,0.05747]
[1763208028858,0.49055894,95712.0,95711.0,0.05705]
[1763208029055,0.52784992,95712.0,95711.0,0.05705]
[1763208029360,0.54648724,95712.0,95711.0,0.05705]
[1763208030058,0.00219803,95710.0,95700.0,0.01388]
[1763208030259,0.03733593,95709.0,95700.0,0.01388]
[1763208030459,0.3608,95701.0,95700.0,0.05758266]
[1763208030854,0.4769994,95701.0,95700.0,0.05758266]
[1763208032656,0.00219803,95700.0,95694.0,0.01388]
[1763208032863,0.0559283,95696.0,95695.0,0.04795083]
[1763208033162,0.1145556,95699.0,95698.0,0.04297]
[1763208033362,0.00219803,95700.0,95699.0,0.04297]
[1763208033560,0.00219803,95700.0,95699.0,0.02108]
[1763208033860,0.12277642,95700.0,95699.0,0.04297]
[1763208034562,0.12277642,95700.0,95699.0,0.04397]
[1763208035456,0.12277642,95700.0,95699.0,0.04497]
[1763208035965,0.12277642,95700.0,95699.0,0.04397]
[1763208036164,0.12277642,95700.0,95699.0,0.04297]
[1763208037369,0.12277642,95700.0,95695.0,0.00498083]
[1763208038161,0.3608,95699.0,95695.0,0.00498083]
[1763208038364,0.1,95698.0,95695.0,0.00498083]
[1763208038564,0.20932437,95698.0,95695.0,0.00498083]
[1763208039660,0.07495664,95697.0,95670.0,0.01351]
[1763208039967,0.3608,95687.0,95686.0,0.04323127]
[1763208040464,0.47787652,95687.0,95686.0,0.04323127]
[1763208042262,0.11707652,95687.0,95686.0,0.04323127]
[1763208042561,0.14759328,95689.0,95688.0,0.05648]
[1763208042766,0.11025429,95689.0,95688.0,0.05648]
[1763208042967,0.00219803,95690.0,95689.0,0.04297]
[1763208043265,0.11245232,95690.0,95689.0,0.04297]
[1763208044969,0.14979509,95690.0,95689.0,0.04297]
[1763208046363,0.11245232,95690.0,95689.0,0.04297]
[1763208047361,0.14980222,95690.0,95689.0,0.04297]
[1763208047763,0.1722821,95690.0,95689.0,0.04297]
[1763208048470,0.1349322,95690.0,95689.0,0.04297]
[1763208048769,0.17229378,95690.0,95689.0,0.04297]
[1763208048970,0.1349322,95690.0,95689.0,0.04297]
[1763208050464,0.19093975,95690.0,95689.0,0.04297]
[1763208050669,0.1349322,95690.0,95689.0,0.04297]
[1763208053865,0.1349322,95690.0,95689.0,0.04397]
[1763208054469,0.1349322,95690.0,95689.0,0.04297]
[1763208054770,0.19103951,95690.0,95689.0,0.04297]
[1763208055579,0.1349322,95690.0,95689.0,0.04297]
[1763208056169,0.1349322,95690.0,95688.0,0.01351]
[1763208056368,0.02247988,95689.0,95688.0,0.05648]
[1763208056772,0.13442461,95689.0,95688.0,0.05648]
[1763208060875,0.13442461,95689.0,95686.0,0.00026127]
[1763208061180,0.13442461,95689.0,95687.0,0.04391]
[1763208061181,0.02247988,95688.0,95687.0,0.04391]
[1763208061479,0.13789173,95688.0,95687.0,0.04391]
[1763208063571,0.13794464,95688.0,95687.0,0.04391]
[1763208067485,0.13794464,95688.0,95687.0,0.0214]
[1763208067984,0.13794464,95688.0,95687.0,0.04391]
[1763208068579,0.13794464,95688.0,95686.0,0.00026127]
[1763208068777,0.02253279,95687.0,95686.0,0.02166127]
[1763208068977,0.38333279,95687.0,95686.0,0.00026127]
[1763208069172,0.50038013,95687.0,95686.0,0.02166127]
[1763208069386,0.50038013,95687.0,95686.0,0.04417127]
[1763208073586,0.50038013,95687.0,95686.0,0.00026127]
[1763208073785,0.57526394,95687.0,95686.0,0.00026127]
[1763208074377,0.50038013,95687.0,95686.0,0.00026127]
[1763208077878,0.47784734,95687.0,95686.0,0.00026127]
[1763208078286,0.47784734,95687.0,95686.0,0.04407127]
[1763208094496,0.47784734,95687.0,95686.0,0.02205127]
[1763208094693,0.47784734,95687.0,95686.0,0.04338127]
[1763208095682,0.47784734,95687.0,95686.0,0.02324127]
[1763208095888,0.47784734,95687.0,95686.0,0.04457127]
[1763208097092,0.55273115,95687.0,95686.0,0.00026127]
[1763208097293,0.47784734,95687.0,95686.0,0.00026127]
[1763208098286,0.57784734,95687.0,95686.0,0.00026127]
[1763208100490,0.47784734,95687.0,95686.0,0.04457127]
[1763208113500,0.5528505,95687.0,95686.0,0.04457127]
[1763208114001,0.47784734,95687.0,95686.0,0.04457127]
[1763208115793,0.00015676,95696.0,95695.0,0.05713]
[1763208116300,0.07223633,95705.0,95704.0,0.04431]
[1763208116499,0.01285093,95712.0,95711.0,0.04431]
[1763208116804,0.07223633,95714.0,95713.0,0.04431]
[1763208117008,0.07500718,95717.0,95716.0,0.04431]
[1763208117206,0.07500718,95718.0,95716.0,0.04431]
[1763208117407,0.11042591,95717.0,95716.0,0.04431]
[1763208117909,0.01228056,95718.0,95717.0,0.04431]
[1763208118104,0.14944154,95720.0,95719.0,0.04531]
[1763208118304,0.07443436,95720.0,95719.0,0.04531]
[1763208118500,0.19262582,95720.0,95719.0,0.04531]
[1763208118704,0.13262858,95720.0,95719.0,0.04531]
[1763208119101,0.23262858,95720.0,95719.0,0.04531]
[1763208119303,0.23462858,95720.0,95719.0,0.04531]
[1763208119510,0.23662858,95720.0,95719.0,0.04531]
[1763208121303,0.13662858,95720.0,95719.0,0.04531]
[1763208121508,0.21149457,95720.0,95719.0,0.04531]
[1763208121710,0.13662858,95720.0,95719.0,0.04531]
[1763208123712,0.13462858,95720.0,95719.0,0.04531]
[1763208123911,0.13262858,95720.0,95719.0,0.04531]
[1763208124309,0.17001118,95720.0,95719.0,0.04531]
[1763208124912,0.16781315,95720.0,95719.0,0.04531]
[1763208125213,0.13043055,95720.0,95719.0,0.04531]
[1763208125911,0.13262858,95720.0,95719.0,0.04531]
[1763208126501,0.13043055,95720.0,95719.0,0.04531]
[1763208127007,0.00015676,95726.0,95725.0,0.04555]
[1763208127217,0.0373826,95733.0,95732.0,0.04555]
[1763208127404,0.07223633,95735.0,95734.0,0.04555]
[1763208127606,0.0373826,95737.0,95736.0,0.04555]
[1763208127813,0.0373826,95737.0,95736.0,0.05854]
[1763208128013,0.11684711,95737.0,95736.0,0.05854]
[1763208128413,0.0120008,95737.0,95736.0,0.05854]
[1763208128610,0.11684711,95738.0,95737.0,0.04555]
[1763208128814,0.00219803,95740.0,95738.0,0.04555]
[1763208129213,0.4795231,95739.0,95738.0,0.04555]
[1763208129416,0.49123703,95739.0,95738.0,0.04555]
[1763208130818,0.49223703,95739.0,95738.0,0.04555]
[1763208131218,0.49323703,95739.0,95738.0,0.04555]
[1763208132717,0.0857231,95739.0,95738.0,0.04555]
[1763208133711,0.001,95739.0,95738.0,0.04555]
[1763208133913,0.00015668,95746.0,95740.0,0.00073266]
[1763208134117,0.00015668,95746.0,95745.0,0.3608]
[1763208134522,0.11297374,95746.0,95745.0,0.3608]
[1763208135211,0.15724374,95746.0,95745.0,0.3608]
[1763208136610,0.15724374,95746.0,95745.0,0.3628]
[1763208137015,0.15724374,95746.0,95745.0,0.3618]
[1763208137519,0.15724374,95746.0,95745.0,0.3608]
[1763208139416,0.15724374,95746.0,95740.0,0.00073266]
[1763208139417,0.04427,95741.0,95740.0,0.00073266]
[1763208139922,0.15709985,95741.0,95740.0,0.00073266]
[1763208153421,0.19448245,95741.0,95740.0,0.00073266]
[1763208154426,0.15709985,95741.0,95740.0,0.00073266]
[1763208156335,0.21297986,95741.0,95740.0,0.00073266]
[1763208157420,0.15709985,95741.0,95740.0,0.00073266]
[1763208179638,0.15709985,95741.0,95733.0,0.3608]
[1763208179639,0.00219803,95740.0,95733.0,0.3608]
[1763208179938,0.04421,95734.0,95733.0,0.3608]
[1763208180131,0.04421,95734.0,95733.0,0.2558]
[1763208180439,0.15916789,95734.0,95733.0,0.1508]
[1763208180642,0.04926,95728.0,95713.0,0.3608]
[1763208180943,0.04421,95714.0,95713.0,0.38335]
[1763208181139,0.04421,95711.0,95705.0,0.3608]
[1763208181343,0.04421,95701.0,95700.0,0.00073266]
[1763208181640,0.15930482,95701.0,95700.0,0.00073266]
[1763208181841,0.15930482,95701.0,95692.0,0.3608]
[1763208181842,0.04421,95693.0,95692.0,0.3608]
[1763208182046,0.04421,95674.0,95673.0,0.3608]
[1763208182542,0.17567769,95674.0,95673.0,0.38335]
[1763208182732,0.17567769,95674.0,95673.0,0.40506]
[1763208183333,0.11966732,95674.0,95673.0,0.40506]
[1763208183836,0.1469715,95680.0,95679.0,0.04426]
[1763208184032,0.01405611,95680.0,95679.0,0.04426]
[1763208184238,0.129331,95680.0,95679.0,0.04426]
[1763208185539,0.11747292,95680.0,95679.0,0.04426]
[1763208186641,0.11527489,95680.0,95679.0,0.04426]
[1763208187148,0.10987001,95682.0,95681.0,0.04426]
[1763208187344,0.00015676,95683.0,95682.0,0.04426]
[1763208187745,0.15423677,95683.0,95682.0,0.04426]
[1763208187947,0.15423677,95683.0,95682.0,0.05808]
[1763208188145,0.11002677,95683.0,95682.0,0.05808]
[1763208190252,0.07502677,95683.0,95682.0,0.05808]
[1763208191146,0.05636185,95683.0,95682.0,0.05808]
[1763208201954,0.10058185,95683.0,95682.0,0.05808]
[1763208202857,0.10058185,95683.0,95682.0,0.04426]
[1763208203758,0.10058185,95683.0,95682.0,0.02255]
[1763208203965,0.04422,95674.0,95673.0,0.36095676]
[1763208204358,0.15801964,95674.0,95673.0,0.36095676]
[1763208205156,0.15801964,95674.0,95673.0,0.40654676]
[1763208205359,0.15801964,95674.0,95673.0,0.38413676]
[1763208205754,0.15801964,95674.0,95673.0,0.38313676]
[1763208205954,0.15801964,95674.0,95673.0,0.38413676]
[1763208206362,0.15801964,95674.0,95673.0,0.38313676]
[1763208207565,0.15801964,95674.0,95673.0,0.36095676]
[1763208207755,0.15801964,95674.0,95673.0,0.38313676]
[1763208208070,0.15801964,95674.0,95673.0,0.40569676]
[1763208210863,0.11379964,95674.0,95673.0,0.40569676]
[1763208211258,0.15758913,95684.0,95673.0,0.36095676]
[1763208211464,0.04483,95684.0,95683.0,0.04369]
[1763208211967,0.15758913,95684.0,95683.0,0.04369]
[1763208213358,0.19496989,95684.0,95683.0,0.02113]
[1763208213561,0.15758913,95684.0,95683.0,0.04369]
[1763208214164,0.19496989,95684.0,95683.0,0.02113]
[1763208214365,0.19496989,95684.0,95680.0,0.00073266]
[1763208214366,0.04483,95681.0,95680.0,0.02186266]
[1763208214668,0.16478942,95681.0,95680.0,0.04442266]
[1763208219564,0.11995942,95681.0,95680.0,0.04442266]
[1763208219970,0.15414944,95688.0,95687.0,0.04369]
[1763208220166,0.04483,95688.0,95687.0,0.04369]
[1763208220371,0.15880915,95688.0,95687.0,0.04369]
[1763208220872,0.17219915,95688.0,95687.0,0.04369]
[1763208227077,0.17219915,95688.0,95687.0,0.02113]
[1763208227272,0.17219915,95688.0,95687.0,0.04369]
[1763208227571,0.15880915,95688.0,95687.0,0.04369]
[1763208248079,0.17180915,95688.0,95687.0,0.04369]
[1763208249084,0.20918991,95688.0,95687.0,0.04369]